fUST/lending_fUST_20240911
["ID","MTS","AMOUNT","RATE_DAILY","PERIOD"]
[337714121,1725985839221,-500.0,0.00016989,2]
[337714122,1725985839230,-500.0,0.00016989,2]
[337714125,1725985839239,-500.0,0.00016989,2]
[337714126,1725985839249,-590.26,0.00016989,2]
[337714127,1725985839259,-500.0,0.00016989,2]
[337714128,1725985839269,-500.0,0.00016989,2]
[337714129,1725985839278,-913.34,0.00016989,2]
[337714131,1725985839288,-500.0,0.00016989,2]
[337714132,1725985839298,-500.0,0.00016989,2]
[337714133,1725985839307,-500.0,0.00016989,2]
[337714134,1725985839316,-500.0,0.00016989,2]
[337714135,1725985839326,-500.0,0.00016989,2]
[337714136,1725985839336,-500.0,0.00016989,2]
[337714137,1725985839345,-500.0,0.00016989,2]
[337714138,1725985839356,-501.74265565,0.00016989,2]
[337714139,1725985839365,-1091.29,0.00016989,2]
[337714140,1725985839374,-507.94989365,0.00016989,2]
[337714141,1725985839385,-500.0,0.00016989,2]
[337714143,1725985839394,-254.89578595,0.00016989,2]
[337714145,1725985839404,-500.0,0.00016989,2]
[337714147,1725985839414,-982.38,0.00016989,2]
[337714149,1725985839424,-500.0,0.00016989,2]
[337714151,1725985839434,-510.23244367,0.00016989,2]
[337714153,1725985839448,-500.0,0.00016989,2]
[337714155,1725985839458,-500.0,0.00016989,2]
[337714157,1725985839467,-500.0,0.00016989,2]
[337714159,1725985839476,-500.0,0.00016989,2]
[337714161,1725985839487,-1734.62,0.00016989,2]
[337714163,1725985839496,-721.96,0.00016989,2]
[337714165,1725985839506,-500.0,0.00016989,2]
[337714167,1725985839515,-708.77,0.00016989,2]
[337714170,1725985839526,-500.0,0.00016989,2]
[337714173,1725985839536,-500.0,0.00016989,2]
[337714175,1725985839546,-500.0,0.00016989,2]
[337714176,1725985839555,-1111.94,0.00016989,2]
[337714178,1725985839565,-500.0,0.00016989,2]
[337714180,1725985839575,-727.65,0.00016989,2]
[337714182,1725985839588,-500.0,0.00016989,2]
[337714184,1725985839598,-500.0,0.00016989,2]
[337714187,1725985839607,-500.0,0.00016989,2]
[337714189,1725985839617,-507.71566468,0.00016989,2]
[337714191,1725985839626,-500.0,0.00016989,2]
[337714193,1725985839636,-606.86,0.00016989,2]
[337714195,1725985839645,-500.0,0.00016989,2]
[337714197,1725985839654,-500.0,0.00016989,2]
[337714199,1725985839664,-1263.0,0.00016989,2]
[337714200,1725985839673,-500.0,0.00016989,2]
[337714202,1725985839683,-500.0,0.00016989,2]
[337714203,1725985839692,-500.0,0.00016989,2]
[337714204,1725985839702,-156.49361723,0.00016989,2]
[337714205,1725985839711,-500.0,0.00016989,2]
[337714206,1725985839720,-503.92364613,0.00016989,2]
[337714207,1725985839730,-500.0,0.00016989,2]
[337714208,1725985839739,-687.63,0.00016989,2]
[337714209,1725985839749,-500.0,0.00016989,2]
[337714210,1725985839759,-500.0,0.00016989,2]
[337714211,1725985839769,-1220.57,0.00016989,2]
[337714212,1725985839779,-1408.86,0.00016989,2]
[337714213,1725985839789,-1499.18,0.00016989,2]
[337714214,1725985839799,-588.09,0.00016989,2]
[337714215,1725985839808,-586.14,0.00016989,2]
[337714216,1725985839817,-500.0,0.00016989,2]
[337714217,1725985839827,-544.3,0.00016989,2]
[337714218,1725985839837,-1237.79,0.00016989,2]
[337714219,1725985839847,-500.0,0.00016989,2]
[337714220,1725985839856,-500.0,0.00016989,2]
[337714221,1725985839866,-500.0,0.00016989,2]
[337714222,1725985839875,-500.0,0.00016989,2]
[337714223,1725985839884,-500.0,0.00016989,2]
[337714224,1725985839894,-448.07582262,0.00016989,2]
[337714225,1725985839903,-500.0,0.00016989,2]
[337714226,1725985839913,-500.0,0.00016989,2]
[337714227,1725985839922,-1226.42,0.00016989,2]
[337714228,1725985839931,-500.0,0.00016989,2]
[337714229,1725985839941,-29772.96,0.00016989,2]
[337714230,1725985839951,-502.98841147,0.00016989,2]
[337714231,1725985839961,-500.0,0.00016989,2]
[337714232,1725985839970,-500.0,0.00016989,2]
[337714233,1725985839979,-500.0,0.00016989,2]
[337714234,1725985839988,-500.0,0.00016989,2]
[337714235,1725985839998,-500.0,0.00016989,2]
[337714236,1725985840007,-503.21125443,0.00016989,2]
[337714237,1725985840016,-538.74,0.00016989,2]
[337714238,1725985840025,-500.0,0.00016989,2]
[337714239,1725985840035,-1471.81,0.00016989,2]
[337714240,1725985840044,-500.0,0.00016989,2]
[337714241,1725985840053,-500.0,0.00016989,2]
[337714242,1725985840062,-500.0,0.00016989,2]
[337714243,1725985840072,-500.0,0.00016989,2]
[337714244,1725985840084,-500.0,0.00016989,2]
[337714245,1725985840097,-500.0,0.00016989,2]
[337714246,1725985840106,-1029.81,0.00016989,2]
[337714247,1725985840115,-576.53,0.00016989,2]
[337714248,1725985840124,-500.0,0.00016989,2]
[337714249,1725985840134,-1499.51,0.00016989,2]
[337714250,1725985840145,-500.0,0.00016989,2]
[337714251,1725985840155,-746.24,0.00016989,2]
[337714252,1725985840163,-3343.56,0.00016989,2]
[337714253,1725985840173,-500.0,0.00016989,2]
[337714254,1725985840182,-543.41,0.00016989,2]
[337714255,1725985840191,-500.0,0.00016989,2]
[337714256,1725985840200,-500.0,0.00016989,2]
[337714257,1725985840210,-500.0,0.00016989,2]
[337714258,1725985840219,-615.18,0.00016989,2]
[337714259,1725985840230,-500.0,0.00016989,2]
[337714260,1725985840239,-500.0,0.00016989,2]
[337714261,1725985840249,-461.67472828,0.00016989,2]
[337714262,1725985840259,-656.43,0.00016989,2]
[337714263,1725985840268,-500.0,0.00016989,2]
[337714264,1725985840277,-9687.54552619,0.0001699,3]
[337714265,1725985840286,-500.0,0.0001699,2]
[337714266,1725985840296,-500.0,0.0001699,2]
[337714267,1725985840306,-500.0,0.0001699,2]
[337714268,1725985840315,-500.0,0.0001699,2]
[337714269,1725985840325,-500.0,0.0001699,2]
[337714270,1725985840336,-500.0,0.0001699,2]
[337714271,1725985840346,-500.0,0.0001699,2]
[337714272,1725985840355,-500.0,0.0001699,2]
[337714273,1725985840364,-500.0,0.0001699,2]
[337714274,1725985840373,-523.72930768,0.0001699,2]
[337714275,1725985840382,-736.55,0.0001699,2]
[337714276,1725985840392,-500.0,0.0001699,2]
[337714277,1725985840402,-500.0,0.0001699,2]
[337714278,1725985840412,-501.15800861,0.0001699,2]
[337714279,1725985840421,-500.0,0.0001699,2]
[337714280,1725985840431,-500.0,0.0001699,2]
[337714281,1725985840441,-527.42535031,0.0001699,2]
[337714282,1725985840454,-500.0,0.0001699,2]
[337714283,1725985840464,-500.0,0.0001699,2]
[337714284,1725985840473,-500.0,0.0001699,2]
[337714285,1725985840483,-500.0,0.0001699,2]
[337714286,1725985840494,-500.0,0.0001699,2]
[337714287,1725985840503,-200.0,0.0001699,2]
[337714288,1725985840514,-500.0,0.0001699,2]
[337714289,1725985840525,-500.0,0.0001699,2]
[337714290,1725985840535,-1034.04,0.0001699,2]
[337714291,1725985840544,-590.02913619,0.0001699,2]
[337714292,1725985840553,-503.82524376,0.0001699,2]
[337714293,1725985840563,-500.0,0.0001699,2]
[337714294,1725985840573,-527.61396848,0.0001699,2]
[337714295,1725985840584,-500.0,0.0001699,2]
[337714296,1725985840594,-500.0,0.0001699,2]
[337714297,1725985840603,-500.0,0.0001699,2]
[337714298,1725985840613,-500.0,0.0001699,2]
[337714299,1725985840623,-500.0,0.0001699,2]
[337714300,1725985840632,-500.0,0.0001699,2]
[337714301,1725985840641,-500.0,0.0001699,2]
[337714302,1725985840651,-505.37629822,0.0001699,2]
[337714303,1725985840661,-500.0,0.0001699,2]
[337714304,1725985840670,-500.0,0.0001699,2]
[337714305,1725985840680,-500.0,0.0001699,2]
[337714306,1725985840689,-500.0,0.0001699,2]
[337714307,1725985840700,-500.0,0.0001699,2]
[337714308,1725985840709,-500.0,0.0001699,2]
[337714309,1725985840719,-500.0,0.0001699,2]
[337714310,1725985840729,-500.0,0.0001699,2]
[337714311,1725985840739,-500.0,0.0001699,2]
[337714312,1725985840749,-500.0,0.0001699,2]
[337714313,1725985840760,-500.0,0.0001699,2]
[337714314,1725985840770,-500.0,0.0001699,2]
[337714315,1725985840780,-533.04913794,0.0001699,2]
[337714316,1725985840791,-500.0,0.0001699,2]
[337714317,1725985840802,-500.0,0.0001699,2]
[337714318,1725985840813,-500.0,0.0001699,2]
[337714319,1725985840824,-500.0,0.0001699,2]
[337714320,1725985840835,-505.96516295,0.0001699,2]
[337714321,1725985840844,-500.0,0.0001699,2]
[337714322,1725985840854,-500.0,0.0001699,2]
[337714323,1725985840863,-500.0,0.0001699,2]
[337714324,1725985840873,-500.0,0.0001699,2]
[337714325,1725985840882,-500.0,0.0001699,2]
[337714326,1725985840892,-500.0,0.0001699,2]
[337714327,1725985840901,-500.0,0.0001699,2]
[337714328,1725985840911,-191.43348125,0.0001699,2]
[337714329,1725985840921,-1060.08,0.0001699,2]
[337714330,1725985840931,-500.0,0.0001699,2]
[337714331,1725985840941,-178.01214032,0.0001699,2]
[337714332,1725985840950,-500.0,0.0001699,2]
[337714333,1725985840959,-500.0,0.0001699,2]
[337714334,1725985840969,-500.0,0.0001699,2]
[337714335,1725985840979,-500.0,0.0001699,2]
[337714336,1725985840988,-500.0,0.0001699,2]
[337714337,1725985840998,-500.0,0.0001699,2]
[337714338,1725985841007,-500.0,0.0001699,2]
[337714339,1725985841017,-500.0,0.0001699,2]
[337714340,1725985841026,-500.0,0.0001699,2]
[337714341,1725985841036,-527.84608972,0.0001699,2]
[337714342,1725985841045,-500.0,0.0001699,2]
[337714343,1725985841055,-659.92,0.0001699,2]
[337714344,1725985841064,-500.0,0.0001699,2]
[337714345,1725985841074,-500.0,0.0001699,2]
[337714346,1725985841084,-500.0,0.0001699,2]
[337714347,1725985841093,-500.0,0.0001699,2]
[337714348,1725985841103,-500.0,0.0001699,2]
[337714349,1725985841112,-500.0,0.0001699,2]
[337714350,1725985841121,-1609.91,0.0001699,2]
[337714351,1725985841131,-500.0,0.0001699,2]
[337714352,1725985841141,-500.0,0.0001699,2]
[337714353,1725985841151,-1567.81,0.0001699,2]
[337714354,1725985841160,-500.0,0.0001699,2]
[337714355,1725985841169,-826.61,0.0001699,2]
[337714356,1725985841178,-500.0,0.0001699,2]
[337714357,1725985841188,-943.78,0.0001699,2]
[337714358,1725985841198,-500.0,0.0001699,2]
[337714359,1725985841207,-630.66,0.0001699,2]
[337714360,1725985841217,-500.0,0.0001699,2]
[337714361,1725985841226,-535.32,0.0001699,2]
[337714362,1725985841236,-500.0,0.0001699,2]
[337714363,1725985841246,-500.0,0.0001699,2]
[337714364,1725985841256,-500.0,0.0001699,2]
[337714365,1725985841266,-524.46,0.0001699,2]
[337714366,1725985841275,-500.0,0.0001699,2]
[337714367,1725985841285,-500.0,0.0001699,2]
[337714368,1725985841298,-1049.85,0.0001699,2]
[337714369,1725985841308,-500.0,0.0001699,2]
[337714370,1725985841317,-1101.15,0.0001699,2]
[337714371,1725985841327,-500.0,0.0001699,2]
[337714372,1725985841338,-500.0,0.0001699,2]
[337714373,1725985841347,-500.0,0.0001699,2]
[337714374,1725985841356,-500.0,0.0001699,2]
[337714375,1725985841366,-500.0,0.0001699,2]
[337714376,1725985841375,-500.0,0.0001699,2]
[337714377,1725985841385,-500.0,0.0001699,2]
[337714378,1725985841394,-500.0,0.0001699,2]
[337714379,1725985841404,-364.34491878,0.0001699,2]
[337714380,1725985841413,-500.0,0.0001699,2]
[337714381,1725985841423,-184.35432735,0.0001699,2]
[337714382,1725985841432,-152.06323289,0.0001699,2]
[337714383,1725985841442,-500.0,0.0001699,2]
[337714384,1725985841454,-500.0,0.0001699,2]
[337714385,1725985841464,-500.0,0.0001699,2]
[337714386,1725985841473,-510.50565031,0.0001699,2]
[337714387,1725985841482,-500.0,0.0001699,2]
[337714388,1725985841493,-743.39,0.0001699,2]
[337714389,1725985841502,-500.0,0.0001699,2]
[337714390,1725985841512,-500.0,0.0001699,2]
[337714391,1725985841524,-500.0,0.0001699,2]
[337714392,1725985841534,-500.0,0.0001699,2]
[337714393,1725985841543,-500.0,0.0001699,2]
[337714394,1725985841552,-500.0,0.0001699,2]
[337714395,1725985841562,-500.0,0.0001699,2]
[337714396,1725985841571,-500.0,0.0001699,2]
[337714397,1725985841581,-505.93039818,0.0001699,2]
[337714398,1725985841592,-550.43095378,0.0001699,2]
[337714399,1725985841601,-500.0,0.0001699,2]
[337714400,1725985841611,-500.0,0.0001699,2]
[337714401,1725985841620,-500.0,0.0001699,2]
[337714402,1725985841630,-500.0,0.0001699,2]
[337714403,1725985841640,-500.0,0.0001699,2]
[337714404,1725985841650,-500.0,0.0001699,2]
[337714405,1725985841659,-500.0,0.0001699,2]
[337714406,1725985841669,-506.46123002,0.0001699,2]
[337714407,1725985841678,-500.0,0.0001699,2]
[337714408,1725985841688,-706.43,0.0001699,2]
[337714409,1725985841697,-500.0,0.0001699,2]
[337714410,1725985841707,-500.0,0.0001699,2]
[337714411,1725985841716,-296.08841857,0.0001699,2]
[337714412,1725985841725,-394.54116609,0.0001699,2]
[337714413,1725985841735,-500.0,0.0001699,2]
[337714414,1725985841744,-500.0,0.0001699,2]
[337714415,1725985841754,-251.12295563,0.0001699,2]
[337714416,1725985841763,-500.0,0.0001699,2]
[337714417,1725985841772,-501.19050018,0.0001699,2]
[337714418,1725985841781,-500.0,0.0001699,2]
[337714419,1725985841790,-500.0,0.0001699,2]
[337714420,1725985841799,-500.0,0.0001699,2]
[337714421,1725985841809,-170.60025097,0.0001699,2]
[337714422,1725985841818,-500.0,0.0001699,2]
[337714423,1725985841828,-500.0,0.0001699,2]
[337714424,1725985841975,-500.0,0.0001699,2]
[337714425,1725985841984,-607.67,0.0001699,2]
[337714426,1725985841994,-500.0,0.0001699,2]
[337714427,1725985842003,-500.0,0.0001699,2]
[337714428,1725985842014,-300.0,0.0001699,2]
[337714429,1725985842024,-500.0,0.0001699,2]
[337714430,1725985842034,-500.0,0.0001699,2]
[337714431,1725985842043,-1124.8,0.0001699,2]
[337714432,1725985842054,-824.78,0.0001699,2]
[337714433,1725985842064,-500.0,0.0001699,2]
[337714434,1725985842074,-1082.15,0.0001699,2]
[337714435,1725985842085,-500.0,0.0001699,2]
[337714436,1725985842094,-500.0,0.0001699,2]
[337714437,1725985842103,-500.0,0.0001699,2]
[337714438,1725985842113,-3799.35,0.0001699,2]
[337714439,1725985842122,-892.78,0.0001699,2]
[337714440,1725985842131,-836.09,0.0001699,2]
[337714441,1725985842141,-1222.08,0.0001699,2]
[337714442,1725985842151,-763.69,0.0001699,2]
[337714443,1725985842160,-500.0,0.0001699,2]
[337714444,1725985842171,-555.09600076,0.0001699,2]
[337714445,1725985842180,-500.0,0.0001699,2]
[337714446,1725985842190,-1300.48,0.0001699,2]
[337714448,1725985842199,-598.42616293,0.0001699,2]
[337714450,1725985842208,-616.23,0.0001699,2]
[337714451,1725985842218,-33394.87309687,0.0001699,2]
[337714468,1725985842742,-500.0,0.00016988,2]
[337714469,1725985842752,-500.0,0.00016989,2]
[337714470,1725985842761,-5370.44690313,0.0001699,2]
[337714471,1725985842771,-716.26,0.0001699,2]
[337714472,1725985842780,-509.57,0.0001699,2]
[337714473,1725985842790,-500.0,0.0001699,2]
[337714474,1725985842799,-500.0,0.0001699,2]
[337714475,1725985842809,-500.0,0.0001699,2]
[337714476,1725985842818,-642.98799987,0.0001699,2]
[337714477,1725985842828,-616.45,0.0001699,2]
[337714478,1725985842839,-605.43,0.0001699,2]
[337714479,1725985842849,-500.0,0.0001699,2]
[337714480,1725985842858,-511.64960837,0.0001699,2]
[337714481,1725985842867,-500.0,0.0001699,2]
[337714482,1725985842876,-3184.77,0.0001699,2]
[337714483,1725985842886,-500.0,0.0001699,2]
[337714484,1725985842895,-500.0,0.0001699,2]
[337714485,1725985842904,-500.0,0.0001699,2]
[337714486,1725985842914,-568.51,0.0001699,2]
[337714488,1725985842923,-500.0,0.0001699,2]
[337714489,1725985842933,-500.0,0.0001699,2]
[337714490,1725985842944,-500.0,0.0001699,2]
[337714491,1725985842954,-500.0,0.0001699,2]
[337714492,1725985842964,-500.0,0.0001699,2]
[337714493,1725985842973,-501.87317101,0.0001699,2]
[337714494,1725985842982,-500.0,0.0001699,2]
[337714495,1725985842991,-567.59,0.0001699,2]
[337714496,1725985843001,-788.81,0.0001699,2]
[337714497,1725985843010,-672.71,0.0001699,2]
[337714498,1725985843019,-500.0,0.0001699,2]
[337714499,1725985843030,-520.68,0.0001699,2]
[337714500,1725985843041,-613.95911434,0.0001699,2]
[337714501,1725985843051,-761.86,0.0001699,2]
[337714502,1725985843062,-645.40423241,0.0001699,2]
[337714503,1725985843071,-427.65385415,0.0001699,2]
[337714504,1725985843082,-1086.7,0.0001699,2]
[337714505,1725985843091,-500.0,0.0001699,2]
[337714506,1725985843100,-503.09148678,0.0001699,2]
[337714507,1725985843109,-500.0,0.0001699,2]
[337714508,1725985843118,-500.0,0.00016991,2]
[337714509,1725985843128,-500.0,0.00016991,2]
[337714510,1725985843139,-500.0,0.00016991,2]
[337714511,1725985843151,-769.04,0.00016991,2]
[337714512,1725985843162,-500.0,0.00016991,2]
[337714513,1725985843171,-500.0,0.00016991,2]
[337714514,1725985843180,-810.79,0.00016991,2]
[337714515,1725985843190,-500.0,0.00016991,2]
[337714516,1725985843200,-500.0,0.00016991,2]
[337714517,1725985843210,-907.76,0.00016991,2]
[337714518,1725985843219,-818.81,0.00016991,2]
[337714519,1725985843228,-500.0,0.00016991,2]
[337714520,1725985843238,-651.16,0.00016991,2]
[337714521,1725985843248,-500.0,0.00016991,2]
[337714522,1725985843257,-590.05,0.00016991,2]
[337714523,1725985843267,-1535.05,0.00016991,2]
[337714524,1725985843276,-1663.24,0.00016991,2]
[337714525,1725985843285,-500.0,0.00016991,2]
[337714526,1725985843295,-984.18,0.00016991,2]
[337714527,1725985843304,-1103.06,0.00016991,2]
[337714528,1725985843314,-500.0,0.00016991,2]
[337714529,1725985843324,-1052.32,0.00016991,2]
[337714530,1725985843336,-500.0,0.00016991,2]
[337714531,1725985843346,-705.99,0.00016991,2]
[337714532,1725985843355,-725.71,0.00016991,2]
[337714533,1725985843365,-1531.2,0.00016991,2]
[337714534,1725985843375,-500.0,0.00016991,2]
[337714535,1725985843384,-557.64,0.00016991,2]
[337714536,1725985843393,-500.0,0.00016991,2]
[337714537,1725985843403,-1295.71,0.00016991,2]
[337714538,1725985843413,-642.73,0.00016991,2]
[337714539,1725985843422,-1383.42,0.00016991,2]
[337714540,1725985843434,-500.0,0.00016991,2]
[337714541,1725985843448,-500.0,0.00016991,2]
[337714542,1725985843458,-500.0,0.00016991,2]
[337714543,1725985843467,-500.0,0.00016991,2]
[337714544,1725985843476,-2171.3,0.00016991,2]
[337714545,1725985843485,-565.71,0.00016991,2]
[337714546,1725985843494,-1052.0,0.00016991,2]
[337714547,1725985843504,-864.22,0.00016991,2]
[337714548,1725985843513,-500.0,0.00016991,2]
[337714549,1725985843525,-368.00094296,0.00016991,2]
[337714550,1725985843534,-500.0,0.00016991,2]
[337714551,1725985843545,-869.89,0.00016991,2]
[337714552,1725985843555,-500.0,0.00016991,2]
[337714553,1725985843565,-1630.0,0.00016991,2]
[337714554,1725985843575,-500.0,0.00016991,2]
[337714555,1725985843586,-527.81934227,0.00016991,2]
[337714556,1725985843598,-4015.19,0.00016991,2]
[337714557,1725985843609,-500.0,0.00016991,2]
[337714558,1725985843620,-500.0,0.00016991,2]
[337714559,1725985843631,-500.0,0.00016991,2]
[337714560,1725985843643,-529.53,0.00016991,2]
[337714561,1725985843653,-178.54290633,0.00016991,2]
[337714562,1725985843662,-627.08,0.00016991,2]
[337714563,1725985843671,-684.32,0.00016991,2]
[337714564,1725985843681,-562.02,0.00016991,2]
[337714565,1725985843691,-1109.86,0.00016991,2]
[337714566,1725985843701,-614.5,0.00016991,2]
[337714567,1725985843710,-595.03,0.00016991,2]
[337714568,1725985843719,-617.74,0.00016991,2]
[337714569,1725985843729,-501.06,0.00016991,2]
[337714570,1725985843739,-1793.55,0.00016991,2]
[337714571,1725985843748,-500.0,0.00016991,2]
[337714572,1725985843758,-500.0,0.00016991,2]
[337714573,1725985843767,-1597.12,0.00016991,2]
[337714574,1725985843776,-690.19,0.00016991,2]
[337714575,1725985843785,-500.0,0.00016991,2]
[337714576,1725985843795,-500.0,0.00016991,2]
[337714577,1725985843804,-515.12231922,0.00016992,2]
[337714578,1725985843813,-500.0,0.00016992,2]
[337714579,1725985843822,-503.99604972,0.00016992,2]
[337714580,1725985843833,-500.0,0.00016992,2]
[337714581,1725985843843,-500.0,0.00016992,2]
[337714582,1725985843852,-505.74362933,0.00016992,2]
[337714583,1725985843862,-500.0,0.00016992,2]
[337714584,1725985843872,-347.87524726,0.00016992,2]
[337714585,1725985843881,-502.5173526,0.00016992,2]
[337714586,1725985843892,-528.14866901,0.00016992,2]
[337714587,1725985843902,-500.0,0.00016992,2]
[337714588,1725985843912,-200.29834476,0.00016992,2]
[337714589,1725985843921,-500.0,0.00016992,2]
[337714590,1725985843930,-500.0,0.00016992,2]
[337714591,1725985843940,-500.0,0.00016992,2]
[337714592,1725985843950,-500.0,0.00016992,2]
[337714593,1725985843959,-500.0,0.00016992,2]
[337714594,1725985843968,-744.21,0.00016992,2]
[337714595,1725985843978,-519.88591458,0.00016992,2]
[337714596,1725985843987,-500.0,0.00016992,2]
[337714597,1725985843997,-500.0,0.00016992,2]
[337714598,1725985844006,-500.0,0.00016992,2]
[337714599,1725985844015,-500.0,0.00016992,2]
[337714600,1725985844025,-1130.42,0.00016992,2]
[337714601,1725985844034,-481.32377313,0.00016992,2]
[337714602,1725985844043,-485.70526164,0.00016992,2]
[337714603,1725985844052,-500.0,0.00016992,2]
[337714604,1725985844062,-500.0,0.00016992,2]
[337714605,1725985844072,-500.0,0.00016992,2]
[337714606,1725985844081,-500.0,0.00016992,2]
[337714607,1725985844091,-500.0,0.00016992,2]
[337714608,1725985844100,-500.0,0.00016992,2]
[337714609,1725985844110,-500.0,0.00016992,2]
[337714610,1725985844120,-500.0,0.00016992,2]
[337714611,1725985844129,-500.0,0.00016992,2]
[337714612,1725985844138,-500.0,0.00016992,2]
[337714613,1725985844147,-588.36,0.00016992,2]
[337714614,1725985844156,-500.0,0.00016992,2]
[337714615,1725985844165,-1585.1,0.00016992,2]
[337714616,1725985844174,-500.0,0.00016992,2]
[337714617,1725985844183,-500.0,0.00016992,2]
[337714618,1725985844193,-500.0,0.00016992,2]
[337714619,1725985844202,-500.0,0.00016992,2]
[337714620,1725985844211,-500.0,0.00016992,2]
[337714621,1725985844220,-500.0,0.00016992,2]
[337714622,1725985844230,-541.69,0.00016992,2]
[337714623,1725985844239,-500.0,0.00016992,2]
[337714624,1725985844249,-500.0,0.00016992,2]
[337714625,1725985844258,-500.0,0.00016992,2]
[337714626,1725985844268,-563.44972324,0.00016992,2]
[337714627,1725985844277,-934.51,0.00016992,2]
[337714628,1725985844287,-500.0,0.00016992,2]
[337714629,1725985844296,-500.0,0.00016992,2]
[337714630,1725985844306,-500.0,0.00016992,2]
[337714631,1725985844316,-500.0,0.00016992,2]
[337714632,1725985844326,-1200.54,0.00016992,2]
[337714633,1725985844336,-500.0,0.00016992,2]
[337714634,1725985844345,-865.76,0.00016992,2]
[337714635,1725985844355,-500.0,0.00016992,2]
[337714636,1725985844364,-500.0,0.00016992,2]
[337714637,1725985844522,-500.0,0.00016992,2]
[337714638,1725985844533,-500.0,0.00016992,2]
[337714639,1725985844543,-283.10182136,0.00016992,2]
[337714640,1725985844553,-500.0,0.00016992,2]
[337714641,1725985844563,-726.9,0.00016992,2]
[337714642,1725985844573,-734.38,0.00016992,2]
[337714643,1725985844583,-1035.62,0.00016992,2]
[337714644,1725985844593,-500.0,0.00016992,2]
[337714645,1725985844602,-500.0,0.00016992,2]
[337714646,1725985844611,-500.0,0.00016992,2]
[337714647,1725985844621,-500.0,0.00016992,2]
[337714648,1725985844629,-500.0,0.00016992,2]
[337714649,1725985844638,-744.91,0.00016992,2]
[337714650,1725985844648,-585.67677082,0.00016992,2]
[337714651,1725985844658,-833.32,0.00016992,2]
[337714652,1725985844667,-833.32,0.00016992,2]
[337714653,1725985844677,-500.0,0.00016992,2]
[337714654,1725985844686,-500.0,0.00016992,2]
[337714655,1725985844695,-500.0,0.00016992,2]
[337714656,1725985844704,-500.0,0.00016992,2]
[337714657,1725985844713,-680.83,0.00016992,2]
[337714658,1725985844722,-500.0,0.00016992,2]
[337714659,1725985844732,-500.0,0.00016992,2]
[337714660,1725985844741,-1353.28,0.00016992,2]
[337714661,1725985844750,-500.0,0.00016992,2]
[337714662,1725985844760,-500.0,0.00016992,2]
[337714663,1725985844769,-500.0,0.00016992,2]
[337714664,1725985844778,-723.22,0.00016992,2]
[337714665,1725985844787,-500.0,0.00016992,2]
[337714666,1725985844796,-500.0,0.00016992,2]
[337714667,1725985844805,-500.0,0.00016992,2]
[337714668,1725985844815,-500.0,0.00016992,2]
[337714669,1725985844824,-708.05,0.00016992,2]
[337714670,1725985844834,-500.0,0.00016992,2]
[337714671,1725985844844,-500.0,0.00016992,2]
[337714672,1725985844853,-833.32,0.00016994,2]
[337714673,1725985844863,-833.32,0.00016995,2]